Organisation Name,Organisation Code,Organisational Unit,Service Category Label,Procurement Category,Supplier Name,Supplier Other ID,Payment Date,Transaction Number,Amount (�),Purpose
Eden District Council,http://opendatacommunities.org/id/district-council/eden,Technical Services Manager,Closed Church Yards,GM INSPECTIONS & MAINTENANCE,URBASER LIMITED,URB002,01/09/2022,205155,37073.15,CERT GM 125AUG22
Eden District Council,http://opendatacommunities.org/id/district-council/eden,Environmental Services,Environmental Services,Furniture � office,HEATONS GROUP LTD,LAK004,31/08/2022,204818,1227.41,STATIONERY / PAPER / CHAIRS
Eden District Council,http://opendatacommunities.org/id/district-council/eden,Transformation & Customers Head of,Central Expenses,Postages,CUMBRIA MAILING SERVICES LTD,CUM011,02/09/2022,204849,1333.05,REFUSE SACKS FULFILLMENT
Eden District Council,http://opendatacommunities.org/id/district-council/eden,Financial Services Manager,Financial Services,Agency Staff,Reed Specialist Recruitment Ltd,REE009,26/08/2022,204852,894.66,FSE SUPPORT WE 26.8.22 EG
Eden District Council,http://opendatacommunities.org/id/district-council/eden,Environmental Services,1996 Mandatory Renovation Grants,Capital grants,TOP NOTCH CONTRACTORS LTD,TOP003,01/09/2022,204904,5895,INT PAYMENT GRANT REF 210073
Eden District Council,http://opendatacommunities.org/id/district-council/eden,Legal Services Manager,Legal Services,Agency Staff,VENN GROUP LIMITED,VEN003,31/08/2022,204906,990,TIME SHEET WE 28.8.22 LD
Eden District Council,http://opendatacommunities.org/id/district-council/eden,Commercial Services Manager,Commercial Services,Agency Staff,Philippa Ball,BAL010,05/09/2022,204984,536.5,ECO DEV SUPPORT SEPT22 EXTRA
Eden District Council,http://opendatacommunities.org/id/district-council/eden,Technical Services Manager,Arts and Leisure,Other charges for services,IMD & ASSOCIATES LTD,IMD001,07/09/2022,204988,2854.04,GYM REFURB - PROPOSALS /FEASIBILITY
Eden District Council,http://opendatacommunities.org/id/district-council/eden,Commercial Services Manager,Town Centres,Professional fees,APPLEBY TOWN COUNCIL,APP001,01/09/2022,205006,1413.3,BUFFET/ PHOTOGRAPHY HAZ CELEBRATION/MOOT
Eden District Council,http://opendatacommunities.org/id/district-council/eden,Environmental Services,1996 Mandatory Renovation Grants,Capital grants,C W COX & SONS (KENDAL)  LTD,COX001,05/09/2022,205032,5865,FIN PAYMENT GRANT REF 210106
Eden District Council,http://opendatacommunities.org/id/district-council/eden,Technical Services Manager,Recycling,Garden Waste Skips,CUMBRIA WASTE RECYCLING LTD,CUM022,31/08/2022,205047,4766,SKIP DROP AUG 22
Eden District Council,http://opendatacommunities.org/id/district-council/eden,Environmental Services,1996 Mandatory Renovation Grants,Capital grants,TOP NOTCH CONTRACTORS LTD,TOP003,12/09/2022,205094,5530,FINAL PAYMENT GRANT REF220010
Eden District Council,http://opendatacommunities.org/id/district-council/eden,Legal Services Manager,Legal Services,Agency Staff,VENN GROUP LIMITED,VEN003,14/09/2022,205106,1155,TIME SHEET WE 11.09.22 LD
Eden District Council,http://opendatacommunities.org/id/district-council/eden,Technical Services Manager,Sustainability,Capital grants,REDACTED INFORMATION,CUR013,15/09/2022,205076,2439.37,GREENING EDEN BUSINESS SCHEME
Eden District Council,http://opendatacommunities.org/id/district-council/eden,Chief Executive's,Local Government Review,Local Government Reorganisation - Costs,APSE,APS001,20/09/2022,205125,7475,CUMBRIA LGR AUG22
Eden District Council,http://opendatacommunities.org/id/district-council/eden,Commercial Services Manager,Grants and contributions,Capital grants,PATTERDALE PARISH COMMUNITY LAND TRUST,PAT018,22/09/2022,205170,6480,PART 1 COMMUNITY HOUSING FUND GRANT
Eden District Council,http://opendatacommunities.org/id/district-council/eden,Chief Executive's,Chief Executive,Agency Staff,CIPFA PENNA,CIP013,02/09/2022,204850,24780,interim managment aug 22 if
Eden District Council,http://opendatacommunities.org/id/district-council/eden,Technical Services Manager,Public Conveniences,Water testing,MITIE,REN007,04/09/2022,204854,1100,SERVICES 1.9.22-30.09.22
Eden District Council,http://opendatacommunities.org/id/district-council/eden,Planning Services,Planning Services,Agency Staff,G2 RECRUITMENT SOLUTIONS,G2R001,07/09/2022,204989,1451.25,TIME SHEET WE 4.9.22 JH
Eden District Council,http://opendatacommunities.org/id/district-council/eden,Planning Services,Planning Services,Agency Staff,G2 RECRUITMENT SOLUTIONS,G2R001,07/09/2022,204990,2600,TIME SHEET WE 4.9.22 PG
Eden District Council,http://opendatacommunities.org/id/district-council/eden,Planning Services,Planning Services,Agency Staff,VIVID RESOURCING,VIV001,07/09/2022,204993,1151.5,TIME SHEET WE 4.9.22 DP
Eden District Council,http://opendatacommunities.org/id/district-council/eden,Planning Services,Planning Services,Agency Staff,VIVID RESOURCING,VIV001,07/09/2022,204994,2750,TIME SHEET WE 4.9.22 JS
Eden District Council,http://opendatacommunities.org/id/district-council/eden,Planning Services,Planning Services,Agency Staff,VIVID RESOURCING,VIV001,14/09/2022,205050,1291.32,time sheet we 11.9.22 dp
Eden District Council,http://opendatacommunities.org/id/district-council/eden,Planning Services,Planning Services,Agency Staff,VIVID RESOURCING,VIV001,14/09/2022,205051,2422.2,time sheet we 11.9.22 pj
Eden District Council,http://opendatacommunities.org/id/district-council/eden,Planning Services,Planning Services,Agency Staff,VIVID RESOURCING,VIV001,14/09/2022,205053,2200,time sheet we 11.9.22 js
Eden District Council,http://opendatacommunities.org/id/district-council/eden,Planning Services,Planning Services,Agency Staff,VIVID RESOURCING,VIV001,21/09/2022,205141,1184.33,TIME SHEET WE 18.9.22 DP
Eden District Council,http://opendatacommunities.org/id/district-council/eden,Planning Services,Planning Services,Agency Staff,G2 RECRUITMENT SOLUTIONS,G2R001,21/09/2022,205143,6500,TIME SHEET WE 11/18.9.22 PG
Eden District Council,http://opendatacommunities.org/id/district-council/eden,Planning Services,Planning Services,Agency Staff,G2 RECRUITMENT SOLUTIONS,G2R001,21/09/2022,205144,3296.25,TIME SHEET WE 11/18.9.22 JH
Eden District Council,http://opendatacommunities.org/id/district-council/eden,Revenue/Benefits Manager,Benefits,Rent allowance,REDACTED INFORMATION,EDC001,03/10/2022,231244,486004.83,HOUSING BENEFIT
Eden District Council,http://opendatacommunities.org/id/district-council/eden,Revenue/Benefits Manager,Benefits,Rent allowance,REDACTED INFORMATION,EDC001,04/10/2022,231245,741.64,HOUSING BENEFIT
Eden District Council,http://opendatacommunities.org/id/district-council/eden,Revenue/Benefits Manager,Business Rate Refunds,Unique payments ****,REDACTED INFORMATION,EDC001,07/10/2022,231393,17482.96,COUNCIL TAX REFUND
Eden District Council,http://opendatacommunities.org/id/district-council/eden,Revenue/Benefits Manager,Business Rate Refunds,Unique payments ****,REDACTED INFORMATION,EDC001,07/10/2022,231394,8518.64,COUNCIL TAX REFUND
Eden District Council,http://opendatacommunities.org/id/district-council/eden,Financial Services Manager,Corporate Costs,Bank charges,BARCLAYCARD,BAR001,10/10/2022,231468,2339.04,BARCLAYCARD
Eden District Council,http://opendatacommunities.org/id/district-council/eden,Financial Services Manager,Corporate Costs,Bank charges,BARCLAYCARD,BAR001,10/10/2022,231469,1233.71,BARCLAYCARD
Eden District Council,http://opendatacommunities.org/id/district-council/eden,Financial Services Manager,Corporate Costs,Bank charges,BARCLAYCARD,BAR001,10/10/2022,231470,677.36,BARCLAYCARD
